[Event "12th KIIT International 2019"]
[Site "Odisha"]
[Date "2019.06.02"]
[Round "3.12"]
[White "Matta, Vinay Kumar"]
[Black "Shyaamnikhil P"]
[Result "0-1"]
[ECO "B96"]
[WhiteElo "2181"]
[BlackElo "2434"]
[Annotator "ChessBase"]
[PlyCount "52"]
[EventDate "2019.01.18"]
[EventType "swiss"]
[EventCountry "IND"]
[SourceTitle "playchess.com"]
[Source "ChessBase"]
[SourceQuality "1"]
[TimeControl "5400+30"]

1. e4 {[%emt 0:05:58]} c5 {[%emt 0:00:00]} 2. Nf3 {[%emt 0:00:05]} d6 {[%emt 0:00:00]} 3. d4 {[%emt 0:00:03]} Nf6 {[%emt 0:00:00]} 4. Nc3 {[%emt 0:00:07]} cxd4 {[%emt 0:00:00]} 5. Nxd4 {[%emt 0:00:03]} a6 {[%emt 0:00:02]} 6. Bg5 {[%emt 0:00:10]} Nbd7 {[%emt 0:04:50]} 7. f4 {[%emt 0:00:21]} Qc7 {[%emt 0:08:34]} 8. Qe2 {[%emt 0:02:59]} e6 {[%emt 0:05:20]} 9. O-O-O {[%emt 0:00:12]} Be7 {[%emt 0:00:19]} 10. Kb1 {[%emt 0:03:55]} b5 {[%emt 0:03:45]} 11. a3 {[%emt 0:00:39]} Rb8 {[%emt 0:02:06]} 12. Nb3 {[%emt 0:09:23]} Nb6 {[%emt 0:08:39]} 13. e5 {[%emt 0:06:30]} dxe5 {[%emt 0:01:52]} 14. fxe5 {[%emt 0:01:39]} Nfd5 {[%emt 0:00:08]} 15. Nxd5 {[%emt 0:00:30]} Nxd5 {[%emt 0:00:06]} 16. Bxe7 {[%emt 0:01:05]} Nxe7 {[%emt 0:04:48]} 17. h4 {[%emt 0:09:01]} O-O {[%emt 0:08:45]} 18. h5 {[%emt 0:02:58]} h6 {[%emt 0:03:12]} 19. Rh3 {[%emt 0:01:13]} Nd5 {[%emt 0:07:42]} 20. Rd4 {[%emt 0:02:29]} f6 {[%emt 0:00:12]} 21. exf6 {[%emt 0:17:32]} Rxf6 {[%emt 0:01:37]} 22. Rf3 {[%emt 0:03:57]} Bd7 {[%emt 0:02:41]} 23. Rxf6 {[%emt 0:05:19]} Nxf6 {[%emt 0:00:46]} 24. Qd1 {[%emt 0:05:33]} e5 {[%emt 0:03:55]} 25. Rd6 {[%emt 0:02:35]} Bg4 {[%emt 0:08:20]} 26. Qd2 {[%emt 0:00:30]} Bxh5 {[%emt 0:00:14]} 0-1

[Event "12th KIIT International 2019"]
[Site "Odisha"]
[Date "2019.06.02"]
[Round "3.13"]
[White "Swain Ashirwad"]
[Black "Das, Sayantan"]
[Result "0-1"]
[ECO "E94"]
[WhiteElo "2118"]
[BlackElo "2419"]
[Annotator "ChessBase"]
[PlyCount "54"]
[EventDate "2019.01.18"]
[EventType "swiss"]
[EventCountry "IND"]
[SourceTitle "playchess.com"]
[Source "ChessBase"]
[SourceQuality "1"]
[TimeControl "5400+30"]

1. d4 {[%emt 0:00:05]} Nf6 {[%emt 0:00:27]} 2. c4 {[%emt 0:00:07]} g6 {[%emt 0:00:18]} 3. Nc3 {[%emt 0:00:18]} Bg7 {[%emt 0:00:07]} 4. e4 {[%emt 0:02:48]} d6 {[%emt 0:00:07]} 5. Nf3 {[%emt 0:01:22]} O-O {[%emt 0:00:23]} 6. Be2 {[%emt 0:00:18]} e5 {[%emt 0:01:13]} 7. O-O {[%emt 0:01:57]} Nbd7 {[%emt 0:00:39]} 8. Bg5 {[%emt 0:04:57]} h6 {[%emt 0:04:00]} 9. Bh4 {[%emt 0:01:45]} c6 {[%emt 0:01:43]} 10. Qd2 {[%emt 0:06:28]} Re8 {[%emt 0:10:20]} 11. d5 {[%emt 0:05:07]} Nc5 {[%emt 0:06:50]} 12. Qc2 {[%emt 0:01:40]} a5 {[%emt 0:02:04]} 13. Rfd1 {[%emt 0:03:49]} Bd7 {[%emt 0:06:37]} 14. Nd2 {[%emt 0:18:49]} Rc8 {[%emt 0:08:55]} 15. Nb3 {[%emt 0:04:21]} Na6 {[%emt 0:04:42]} 16. c5 {[%emt 0:09:18]} a4 {[%emt 0:06:51]} 17. Nxa4 {[%emt 0:13:06]} cxd5 {[%emt 0:00:25]} 18. Bxf6 {[%emt 0:00:46]} Bxf6 {[%emt 0:02:05]} 19. Bxa6 {[%emt 0:00:06]} bxa6 {[%emt 0:02:24]} 20. Nc3 {[%emt 0:02:45]} d4 {[%emt 0:00:47]} 21. Nd5 {[%emt 0:00:05]} Be7 {[%emt 0:07:20]} 22. Nxe7+ {[%emt 0:03:57]} Qxe7 {[%emt 0:01:52]} 23. Rac1 {[%emt 0:02:12]} Ba4 {[%emt 0:05:54]} 24. Qc4 {[%emt 0:02:43]} Bxb3 {[%emt 0:01:06]} 25. axb3 {[%emt 0:00:14]} Rxc5 {[%emt 0:04:03]} 26. Qxa6 {[%emt 0:00:05]} Qc7 {[%emt 0:00:20]} 27. Rxc5 {[%emt 0:01:08]} Qxc5 {[%emt 0:00:09]} 0-1

[Event "12th KIIT International 2019"]
[Site "Odisha"]
[Date "2019.06.02"]
[Round "3.14"]
[White "Koustav Chatterjee"]
[Black "Rathneesh R"]
[Result "1-0"]
[ECO "E05"]
[WhiteElo "2404"]
[BlackElo "2160"]
[Annotator "ChessBase"]
[PlyCount "57"]
[EventDate "2019.01.18"]
[EventType "swiss"]
[EventCountry "IND"]
[SourceTitle "playchess.com"]
[Source "ChessBase"]
[SourceQuality "1"]
[TimeControl "5400+30"]

1. Nf3 {[%emt 0:00:00]} Nf6 {[%emt 0:00:21]} 2. g3 {[%emt 0:00:00]} d5 {[%emt 0:00:53]} 3. d4 {[%emt 0:00:04]} e6 {[%emt 0:01:18]} 4. c4 {[%emt 0:00:08]} Be7 {[%emt 0:00:56]} 5. Bg2 {[%emt 0:00:11]} O-O {[%emt 0:01:18]} 6. O-O {[%emt 0:00:07]} dxc4 {[%emt 0:00:07]} 7. Qc2 {[%emt 0:03:06]} a6 {[%emt 0:01:04]} 8. a4 {[%emt 0:00:05]} Bd7 {[%emt 0:01:35]} 9. Rd1 {[%emt 0:00:19]} Bc6 {[%emt 0:04:40]} 10. Nc3 {[%emt 0:00:06]} Bb4 {[%emt 0:07:50]} 11. Ne5 {[%emt 0:12:43]} Bxg2 {[%emt 0:07:32]} 12. Kxg2 {[%emt 0:00:09]} Nc6 {[%emt 0:07:55]} 13. Nxc6 {[%emt 0:04:03]} bxc6 {[%emt 0:00:23]} 14. Na2 {[%emt 0:01:22]} Rb8 {[%emt 0:11:39]} 15. f3 {[%emt 0:02:15]} Qd7 {[%emt 0:13:30]} 16. Qxc4 {[%emt 0:10:45]} c5 {[%emt 0:01:50]} 17. Bg5 {[%emt 0:15:46]} Qd5 {[%emt 0:07:29]} 18. Qxd5 {[%emt 0:04:36]} Nxd5 {[%emt 0:00:18]} 19. e4 {[%emt 0:00:03]} h6 {[%emt 0:02:50]} 20. Bc1 {[%emt 0:01:31]} Nf6 {[%emt 0:14:56]} 21. Nxb4 {[%emt 0:01:12]} Rxb4 {[%emt 0:00:27]} 22. dxc5 {[%emt 0:00:07]} Rfb8 {[%emt 0:00:31]} 23. Ra2 {[%emt 0:02:46]} Kf8 {[%emt 0:03:52]} 24. Kf2 {[%emt 0:07:01]} Rc4 {[%emt 0:03:24]} 25. Be3 {[%emt 0:00:30]} Rbb4 {[%emt 0:00:54]} 26. Ke2 {[%emt 0:02:40]} Rxa4 {[%emt 0:00:52]} 27. Rxa4 {[%emt 0:00:02]} Rxa4 {[%emt 0:00:07]} 28. Kd3 {[%emt 0:00:02]} Nd7 {[%emt 0:01:47]} 29. Kc3 {[%emt 0:01:08]} 1-0

[Event "12th KIIT International 2019"]
[Site "Odisha"]
[Date "2019.06.02"]
[Round "3.16"]
[White "Manush Shah"]
[Black "Kiran, Manisha Mohanty"]
[Result "1/2-1/2"]
[ECO "D03"]
[WhiteElo "2385"]
[BlackElo "2090"]
[Annotator "ChessBase"]
[PlyCount "68"]
[EventDate "2019.01.18"]
[EventType "swiss"]
[EventCountry "IND"]
[SourceTitle "playchess.com"]
[Source "ChessBase"]
[SourceQuality "1"]
[TimeControl "5400+30"]

1. d4 {[%emt 0:00:14]} Nf6 {[%emt 0:00:11]} 2. Nf3 {[%emt 0:00:03]} g6 {[%emt 0:00:06]} 3. Bg5 {[%emt 0:00:13]} Bg7 {[%emt 0:00:31]} 4. Nbd2 {[%emt 0:00:03]} d5 {[%emt 0:00:22]} 5. e3 {[%emt 0:00:13]} O-O {[%emt 0:00:33]} 6. Be2 {[%emt 0:05:17]} c5 {[%emt 0:00:14]} 7. c3 {[%emt 0:00:19]} Qb6 {[%emt 0:01:04]} 8. Qb3 {[%emt 0:00:23]} Nc6 {[%emt 0:03:59]} 9. O-O {[%emt 0:02:01]} Be6 {[%emt 0:12:34]} 10. Qa3 {[%emt 0:03:17]} Nd7 {[%emt 0:03:25]} 11. Rac1 {[%emt 0:15:38]} Rfe8 {[%emt 0:04:59]} 12. dxc5 {[%emt 0:05:26]} Qxc5 {[%emt 0:04:38]} 13. b4 {[%emt 0:01:49]} Qd6 {[%emt 0:06:35]} 14. Bf4 {[%emt 0:02:33]} Nde5 {[%emt 0:00:37]} 15. Rfd1 {[%emt 0:15:53]} a5 {[%emt 0:15:42]} 16. Nc4 {[%emt 0:01:21]} Nxc4 {[%emt 0:00:06]} 17. Bxc4 {[%emt 0:00:10]} axb4 {[%emt 0:00:22]} 18. Qxa8 {[%emt 0:00:46]} Rxa8 {[%emt 0:00:04]} 19. Bxd6 {[%emt 0:00:05]} dxc4 {[%emt 0:00:05]} 20. Bxb4 {[%emt 0:00:21]} Nxb4 {[%emt 0:00:15]} 21. cxb4 {[%emt 0:00:05]} Bb2 {[%emt 0:00:08]} 22. Rc2 {[%emt 0:02:50]} c3 {[%emt 0:00:10]} 23. Nd4 {[%emt 0:02:55]} Bxa2 {[%emt 0:00:20]} 24. f4 {[%emt 0:00:35]} f6 {[%emt 0:02:34]} 25. Rd3 {[%emt 0:02:16]} Bc4 {[%emt 0:06:03]} 26. Rdxc3 {[%emt 0:02:43]} Bxc3 {[%emt 0:00:38]} 27. Rxc3 {[%emt 0:00:01]} Ra1+ {[%emt 0:00:12]} 28. Kf2 {[%emt 0:00:05]} b5 {[%emt 0:02:38]} 29. Rc2 {[%emt 0:09:00]} Rb1 {[%emt 0:00:29]} 30. Nc6 {[%emt 0:00:07]} Kf7 {[%emt 0:00:10]} 31. Rd2 {[%emt 0:00:19]} h5 {[%emt 0:04:13]} 32. e4 {[%emt 0:01:41]} Rb3 {[%emt 0:00:34]} 33. e5 {[%emt 0:05:01]} fxe5 {[%emt 0:31:59]} 34. fxe5 {[%emt 0:00:48]} g5 {[%emt 0:00:00]} 1/2-1/2

[Event "12th KIIT International 2019"]
[Site "Odisha"]
[Date "2019.06.02"]
[Round "3.17"]
[White "Sahoo, Utkal Ranjan"]
[Black "Barath Kalyan M"]
[Result "1-0"]
[ECO "D00"]
[WhiteElo "2371"]
[BlackElo "2084"]
[Annotator "ChessBase"]
[PlyCount "63"]
[EventDate "2019.01.18"]
[EventType "swiss"]
[EventCountry "IND"]
[SourceTitle "playchess.com"]
[Source "ChessBase"]
[SourceQuality "1"]
[TimeControl "5400+30"]

1. d4 {[%emt 0:00:33]} Nf6 {[%emt 0:00:06]} 2. Bg5 {[%emt 0:00:13]} d5 {[%emt 0:01:10]} 3. Bxf6 {[%emt 0:00:12]} exf6 {[%emt 0:00:10]} 4. e3 {[%emt 0:00:05]} Bd6 {[%emt 0:01:50]} 5. g3 {[%emt 0:00:08]} O-O {[%emt 0:03:25]} 6. Bg2 {[%emt 0:00:09]} Nc6 {[%emt 0:01:08]} 7. Ne2 {[%emt 0:03:12]} Ne7 {[%emt 0:02:31]} 8. b3 {[%emt 0:05:14]} c6 {[%emt 0:00:50]} 9. O-O {[%emt 0:00:19]} Bf5 {[%emt 0:01:55]} 10. c4 {[%emt 0:01:18]} Qd7 {[%emt 0:00:57]} 11. Nbc3 {[%emt 0:01:32]} Bh3 {[%emt 0:04:52]} 12. Qd3 {[%emt 0:03:58]} h5 {[%emt 0:01:42]} 13. cxd5 {[%emt 0:04:15]} cxd5 {[%emt 0:11:18]} 14. Qb5 {[%emt 0:02:27]} Qxb5 {[%emt 0:08:41]} 15. Nxb5 {[%emt 0:02:38]} Bxg2 {[%emt 0:00:09]} 16. Kxg2 {[%emt 0:00:09]} Rfd8 {[%emt 0:08:26]} 17. Rfc1 {[%emt 0:04:54]} Nc6 {[%emt 0:00:48]} 18. h4 {[%emt 0:14:53]} g6 {[%emt 0:02:46]} 19. Kf3 {[%emt 0:10:27]} f5 {[%emt 0:00:50]} 20. Nxd6 {[%emt 0:13:14]} Rxd6 {[%emt 0:00:08]} 21. Rc5 {[%emt 0:00:25]} Kg7 {[%emt 0:02:29]} 22. Nf4 {[%emt 0:00:46]} Rad8 {[%emt 0:00:10]} 23. Rac1 {[%emt 0:00:53]} R8d7 {[%emt 0:02:32]} 24. Ke2 {[%emt 0:02:51]} Nd8 {[%emt 0:06:18]} 25. Nd3 {[%emt 0:02:32]} Ne6 {[%emt 0:05:08]} 26. R5c2 {[%emt 0:02:49]} Re7 {[%emt 0:01:42]} 27. Kd2 {[%emt 0:00:12]} Re8 {[%emt 0:00:54]} 28. Ne5 {[%emt 0:06:02]} Kf6 {[%emt 0:01:32]} 29. Nd3 {[%emt 0:01:40]} Ke7 {[%emt 0:01:01]} 30. Nc5 {[%emt 0:01:16]} Nxc5 {[%emt 0:01:13]} 31. dxc5 {[%emt 0:00:12]} Rd7 {[%emt 0:05:37]} 32. Kd3 {[%emt 0:01:00]} 1-0

[Event "12th KIIT International 2019"]
[Site "Odisha"]
[Date "2019.06.02"]
[Round "3.18"]
[White "Kumar, Gaurav"]
[Black "Viani Antonio Dcunha"]
[Result "0-1"]
[ECO "C78"]
[WhiteElo "2082"]
[BlackElo "2362"]
[Annotator "RC"]
[PlyCount "71"]
[EventDate "2019.01.18"]
[EventType "swiss"]
[EventCountry "IND"]
[SourceTitle "playchess.com"]
[Source "ChessBase"]
[SourceQuality "1"]
[TimeControl "5400+30"]

1. e4 {[%emt 0:00:08]} e5 {[%emt 0:00:00]} 2. Nf3 {[%emt 0:01:17]} Nc6 {[%emt 0:00:14]} 3. Bb5 {[%emt 0:02:00]} a6 {[%emt 0:00:17]} 4. Ba4 {[%emt 0:00:02]} Nf6 {[%emt 0:00:19]} 5. O-O {[%emt 0:00:08]} Bc5 {[%emt 0:00:29]} 6. Nxe5 {[%emt 0:00:47]} Nxe5 {[%emt 0:00:45]} 7. d4 {[%emt 0:00:07]} b5 {[%emt 0:00:27]} 8. Bb3 {[%emt 0:00:16]} Bxd4 {[%emt 0:00:26]} 9. Qxd4 {[%emt 0:00:02]} d6 {[%emt 0:00:14]} 10. f4 {[%emt 0:02:36]} c5 {[%emt 0:00:37]} 11. Qd1 {[%emt 0:00:39]} Nc6 {[%emt 0:00:53]} 12. c3 {[%emt 0:18:04]} O-O {[%emt 0:01:33]} 13. Qf3 {[%emt 0:04:26]} Qb6 {[%emt 0:07:23]} 14. Bc2 {[%emt 0:02:04]} Bb7 {[%emt 0:01:12]} 15. Be3 {[%emt 0:00:53]} Rae8 {[%emt 0:10:43]} 16. Nd2 {[%emt 0:01:16]} Na5 {[%emt 0:11:59]} 17. b4 {[%emt 0:05:18]} Nc4 {[%emt 0:00:40]} 18. bxc5 {[%emt 0:01:00]} dxc5 {[%emt 0:00:24]} 19. Nxc4 {[%emt 0:00:07]} bxc4 {[%emt 0:00:10]} 20. Rab1 {[%emt 0:00:04]} Qc7 {[%emt 0:03:18]} 21. Rxb7 {[%emt 0:00:07]} Qxb7 {[%emt 0:00:05]} 22. Bxc5 {[%emt 0:00:07]} Nxe4 {[%emt 0:04:45]} 23. Bxe4 {[%emt 0:13:35]} Qxe4 {[%emt 0:04:20]} 24. Qxe4 {[%emt 0:00:39]} Re7 {[%emt 0:50:47]} 25. Qe5 Rxe5 {[%emt 0:00:00]} 26. Be7 {[%emt 0:47:18]} Re4 27. Bxf8 {[%emt 0:00:00]} Kxf8 {[%emt 0:00:00]} 28. Rb1 {[%emt 0:00:00]} Re3 {[%emt 0:00:00]} 29. Rb6 {[%emt 0:00:00]} a5 {[%emt 0:00:00]} 30. Ra6 {[%emt 0:00:00]} Rxc3 {[%emt 0:00:00]} 31. Rxa5 {[%emt 0:00:00]} Ke7 {[%emt 0:00:00]} 32. Ra7+ {[%emt 0:00:00]} Kd6 {[%emt 0:00:00]} 33. Kf2 {[%emt 0:00:00]} Rc2+ {[%emt 0:00:00]} 34. Kf3 {[%emt 0:00:00]} c3 {[%emt 0:00:00]} 35. Rxf7 {[%emt 0:00:00]} Rxg2 {[%emt 0:05:30]} 36. Ke4 {[%emt 0:05:00] Ke5+ Kd4+ Kd6 [%clk 0:00:00] Ke3 Ke5 [%clk 0:00:00] Kd4+ [%clk 0:00:00]} 0-1

[Event "12th KIIT International 2019"]
[Site "Odisha"]
[Date "2019.06.02"]
[Round "4.4"]
[White "Vasquez Schroeder, Rodrigo"]
[Black "Sahoo, Utkal Ranjan"]
[Result "1/2-1/2"]
[ECO "C54"]
[WhiteElo "2476"]
[BlackElo "2371"]
[Annotator "ChessBase"]
[PlyCount "86"]
[EventDate "2019.01.18"]
[EventType "swiss"]
[EventCountry "IND"]
[SourceTitle "playchess.com"]
[Source "ChessBase"]
[SourceQuality "1"]
[TimeControl "5400+30"]

1. e4 {[%emt 0:00:00]} e5 {[%emt 0:00:00]} 2. Nf3 {[%emt 0:00:00]} Nc6 {[%emt 0:00:00]} 3. Bc4 {[%emt 0:00:00]} Bc5 {[%emt 0:00:33]} 4. c3 {[%emt 0:00:00]} Nf6 {[%emt 0:00:36]} 5. d3 {[%emt 0:00:01]} d6 {[%emt 0:01:13]} 6. Bb3 {[%emt 0:00:26]} a6 {[%emt 0:01:36]} 7. h3 {[%emt 0:00:23]} h6 {[%emt 0:02:54]} 8. Nbd2 {[%emt 0:00:16]} O-O {[%emt 0:01:00]} 9. Nf1 {[%emt 0:01:11]} Re8 {[%emt 0:06:32]} 10. Ng3 {[%emt 0:01:17]} Ne7 {[%emt 0:02:54]} 11. O-O {[%emt 0:00:30]} Ng6 {[%emt 0:00:53]} 12. d4 {[%emt 0:01:33]} Ba7 {[%emt 0:00:57]} 13. Re1 {[%emt 0:00:24]} c6 {[%emt 0:03:11]} 14. Bc2 {[%emt 0:01:31]} Be6 {[%emt 0:14:21]} 15. Be3 {[%emt 0:00:56]} Qc7 {[%emt 0:02:02]} 16. Qd2 {[%emt 0:02:51]} Kh7 {[%emt 0:07:13]} 17. Nf5 {[%emt 0:07:21]} Ng8 {[%emt 0:08:03]} 18. Rad1 {[%emt 0:03:51]} Red8 {[%emt 0:04:25]} 19. Qc1 {[%emt 0:01:23]} f6 {[%emt 0:05:11]} 20. Ng3 {[%emt 0:01:33]} Kh8 {[%emt 0:07:25]} 21. b3 {[%emt 0:00:56]} Qf7 {[%emt 0:02:27]} 22. c4 {[%emt 0:00:25]} b5 {[%emt 0:02:03]} 23. cxb5 {[%emt 0:01:48]} axb5 {[%emt 0:01:10]} 24. Qb2 {[%emt 0:00:39]} N8e7 {[%emt 0:02:48]} 25. Rd2 {[%emt 0:01:10]} c5 {[%emt 0:04:58]} 26. dxc5 {[%emt 0:04:32]} Bxc5 {[%emt 0:01:27]} 27. Bxc5 {[%emt 0:02:03]} dxc5 {[%emt 0:00:01]} 28. Rxd8+ {[%emt 0:00:51]} Rxd8 {[%emt 0:00:01]} 29. Qc3 {[%emt 0:00:22]} Nf4 {[%emt 0:02:07]} 30. Rd1 {[%emt 0:01:23]} Rxd1+ {[%emt 0:00:49]} 31. Bxd1 {[%emt 0:00:02]} c4 {[%emt 0:00:33]} 32. bxc4 {[%emt 0:00:51]} Bxc4 {[%emt 0:16:37]} 33. a4 {[%emt 0:00:25]} bxa4 {[%emt 0:00:00]} 34. Bxa4 {[%emt 0:03:12]} Ne2+ {[%emt 0:00:00]} 35. Nxe2 {[%emt 0:00:07]} Bxe2 {[%emt 0:00:00]} 36. Nd2 {[%emt 0:00:41]} Bh5 {[%emt 0:00:00]} 37. Qc7 {[%emt 0:01:50]} Qa2 {[%emt 0:00:00]} 38. Qd8+ {[%emt 0:01:10]} Kh7 {[%emt 0:00:00]} 39. Bb5 {[%emt 0:03:35]} Bg6 {[%emt 0:01:23]} 40. Qd6 {[%emt 0:06:37]} Nc8 {[%emt 0:01:44]} 41. Qb4 {[%emt 0:00:45]} Qa1+ {[%emt 0:00:18]} 42. Bf1 {[%emt 0:00:49]} Qe1 {[%emt 0:00:14]} 43. Qc3 {[%emt 0:14:23]} Ne7 {[%emt 0:00:43]} 1/2-1/2

[Event "12th KIIT International 2019"]
[Site "Odisha"]
[Date "2019.06.02"]
[Round "4.5"]
[White "Pranav Vijay"]
[Black "Laxman, R.R."]
[Result "0-1"]
[ECO "C67"]
[WhiteElo "2265"]
[BlackElo "2437"]
[Annotator "ChessBase"]
[PlyCount "162"]
[EventDate "2019.01.18"]
[EventType "swiss"]
[EventCountry "IND"]
[SourceTitle "playchess.com"]
[Source "ChessBase"]
[SourceQuality "1"]
[TimeControl "5400+30"]

1. e4 {[%emt 0:00:00]} e5 {[%emt 0:00:00]} 2. Nf3 {[%emt 0:00:00]} Nc6 {[%emt 0:00:00]} 3. Bb5 {[%emt 0:00:09]} Nf6 {[%emt 0:00:00]} 4. O-O {[%emt 0:01:11]} Nxe4 {[%emt 0:00:00]} 5. Re1 {[%emt 0:00:07]} Nd6 {[%emt 0:00:05]} 6. Nxe5 {[%emt 0:00:14]} Nxe5 {[%emt 0:00:17]} 7. Rxe5+ {[%emt 0:00:10]} Be7 {[%emt 0:00:06]} 8. Bd3 {[%emt 0:00:08]} O-O {[%emt 0:00:12]} 9. Nc3 {[%emt 0:00:06]} c6 {[%emt 0:01:20]} 10. b3 {[%emt 0:00:57]} Ne8 {[%emt 0:00:57]} 11. Bb2 {[%emt 0:02:43]} d5 {[%emt 0:00:26]} 12. Qf3 {[%emt 0:09:43]} Bd6 {[%emt 0:01:47]} 13. Ree1 {[%emt 0:09:00]} Qh4 {[%emt 0:02:20]} 14. h3 {[%emt 0:02:31]} Nf6 {[%emt 0:01:19]} 15. Nd1 {[%emt 0:08:48]} d4 {[%emt 0:12:47]} 16. g3 {[%emt 0:02:22]} Qxh3 {[%emt 0:00:29]} 17. Bxd4 {[%emt 0:00:25]} Ng4 {[%emt 0:06:37]} 18. Qh1 {[%emt 0:01:56]} Qxh1+ {[%emt 0:01:25]} 19. Kxh1 {[%emt 0:00:15]} c5 {[%emt 0:03:08]} 20. Bb2 {[%emt 0:03:24]} Bd7 {[%emt 0:00:43]} 21. Kg2 {[%emt 0:01:37]} Rfe8 {[%emt 0:17:19]} 22. Ne3 {[%emt 0:12:40]} Bc6+ {[%emt 0:00:18]} 23. f3 {[%emt 0:00:15]} Be5 {[%emt 0:01:03]} 24. Nxg4 {[%emt 0:22:15]} Bxb2 {[%emt 0:00:07]} 25. Rxe8+ {[%emt 0:00:06]} Rxe8 {[%emt 0:00:04]} 26. Rh1 {[%emt 0:00:10]} g6 {[%emt 0:07:36]} 27. c3 {[%emt 0:02:17]} Rd8 {[%emt 0:00:13]} 28. Nf2 {[%emt 0:00:24]} b5 {[%emt 0:01:10]} 29. Rb1 {[%emt 0:04:42]} Ba3 {[%emt 0:00:04]} 30. Rd1 {[%emt 0:00:37]} f5 {[%emt 0:00:33]} 31. Re1 {[%emt 0:01:23]} Kf7 {[%emt 0:00:21]} 32. Rd1 {[%emt 0:04:24]} h5 {[%emt 0:01:19]} 33. Be2 {[%emt 0:02:30]} Kf6 {[%emt 0:00:53]} 34. Nd3 {[%emt 0:01:11]} c4 {[%emt 0:02:02]} 35. Nf2 {[%emt 0:01:44]} g5 {[%emt 0:04:21]} 36. Kf1 {[%emt 0:00:50]} Bd6 {[%emt 0:00:20]} 37. f4 {[%emt 0:01:49]} gxf4 {[%emt 0:00:07]} 38. gxf4 {[%emt 0:00:05]} Bxf4 {[%emt 0:00:16]} 39. bxc4 {[%emt 0:00:29]} bxc4 {[%emt 0:00:05]} 40. d4 {[%emt 0:01:10]} cxd3 {[%emt 0:00:59]} 41. Rxd3 {[%emt 0:00:59]} Rb8 {[%emt 0:02:15]} 42. Rh3 {[%emt 0:01:10]} Rb1+ {[%emt 0:00:08]} 43. Nd1 {[%emt 0:00:05]} Ba4 {[%emt 0:00:34]} 44. Rd3 {[%emt 0:01:15]} Bc2 {[%emt 0:00:31]} 45. Rd4 {[%emt 0:01:00]} Be3 {[%emt 0:01:05]} 46. Rd8 {[%emt 0:01:00]} Ke7 {[%emt 0:00:55]} 47. Rd5 {[%emt 0:00:13]} Be4 {[%emt 0:01:46]} 48. Re5+ {[%emt 0:00:45]} Kf6 {[%emt 0:00:12]} 49. Rxe4 {[%emt 0:02:14]} fxe4 {[%emt 0:00:05]} 50. Bxh5 {[%emt 0:00:05]} Kg5 {[%emt 0:00:32]} 51. Be2 {[%emt 0:00:28]} Ra1 {[%emt 0:00:16]} 52. Ke1 {[%emt 0:00:12]} Kf4 {[%emt 0:00:07]} 53. Bc4 {[%emt 0:00:02]} Rc1 {[%emt 0:01:01]} 54. Bb3 {[%emt 0:01:27]} Kf3 {[%emt 0:00:09]} 55. Ba4 {[%emt 0:00:29]} Ra1 {[%emt 0:00:18]} 56. Bb3 {[%emt 0:00:29]} Bf2+ {[%emt 0:00:02]} 57. Kd2 {[%emt 0:00:09]} e3+ {[%emt 0:00:03]} 58. Kd3 {[%emt 0:00:04]} Rc1 {[%emt 0:01:45]} 59. Ba4 {[%emt 0:00:30]} Be1 {[%emt 0:01:22]} 60. Bc6+ {[%emt 0:00:54]} Kf4 {[%emt 0:00:01]} 61. Ba4 {[%emt 0:00:18]} Bd2 {[%emt 0:01:23]} 62. Bb3 {[%emt 0:00:24]} a5 {[%emt 0:01:30]} 63. Ba4 {[%emt 0:01:34]} Rb1 {[%emt 0:01:13]} 64. Bb3 {[%emt 0:00:35]} Ra1 {[%emt 0:00:09]} 65. Ke2 {[%emt 0:00:29]} a4 {[%emt 0:00:47]} 66. Bxa4 {[%emt 0:00:19]} Rxa2 {[%emt 0:00:01]} 67. Bb3 {[%emt 0:00:05]} Ra3 {[%emt 0:00:09]} 68. Bc4 {[%emt 0:01:07]} Ra8 {[%emt 0:00:14]} 69. Bd5 {[%emt 0:00:47]} Rh8 {[%emt 0:00:11]} 70. Nb2 {[%emt 0:00:26]} Rh2+ {[%emt 0:00:02]} 71. Kd3 {[%emt 0:00:36]} Bc1 {[%emt 0:00:15]} 72. Nc4 {[%emt 0:00:17]} e2 {[%emt 0:00:10]} 73. Kc2 {[%emt 0:00:13]} e1=Q+ {[%emt 0:00:04]} 74. Kd3 {[%emt 0:00:08]} Qd1+ {[%emt 0:00:13]} 75. Nd2 {[%emt 0:00:03]} Rxd2+ {[%emt 0:00:06]} 76. Kc4 {[%emt 0:00:01]} Rxd5 {[%emt 0:00:15]} 77. Kb4 {[%emt 0:00:01]} Ba3+ {[%emt 0:00:08]} 78. Kc4 {[%emt 0:00:03]} Qd3+ {[%emt 0:00:04]} 79. Kb3 {[%emt 0:00:02]} Rb5+ {[%emt 0:00:08]} 80. Ka4 {[%emt 0:00:03]} Qc4+ {[%emt 0:00:05]} 81. Kxa3 {[%emt 0:00:01]} Qb3# {[%emt 0:00:06]} 0-1